[Event "Early-Titled-Tuesday-Blitz-May-14-2024"]
[Site "Chess.com"]
[Date "2024.05.14"]
[Round "5"]
[White "DumbKing75"]
[Black "kingofthenil"]
[Result "0-1"]
[WhiteElo "2657"]
[BlackElo "2844"]
[TimeControl "180+1"]
[EndTime "8:57:47 PDT"]
[Termination "kingofthenil won on time"]

1. e4 {[%clk 0:03:00.9]} 1... Nc6 {[%clk 0:02:45.7]} 2. Nc3 {[%clk 0:02:57.9]}
2... d5 {[%clk 0:02:45.4]} 3. exd5 {[%clk 0:02:42.9]} 3... Nb4 {[%clk
0:02:44.2]} 4. Bb5+ {[%clk 0:02:43.1]} 4... Bd7 {[%clk 0:02:43.4]} 5. Bc4 {[%clk
0:02:29.9]} 5... Bf5 {[%clk 0:02:42.7]} 6. d3 {[%clk 0:02:25.7]} 6... Nf6 {[%clk
0:02:41.8]} 7. Bb5+ {[%clk 0:02:17.6]} 7... Bd7 {[%clk 0:02:41.1]} 8. Bc4 {[%clk
0:02:17.8]} 8... Bg4 {[%clk 0:02:41.3]} 9. f3 {[%clk 0:02:09.3]} 9... Bc8 {[%clk
0:02:39.6]} 10. Bb5+ {[%clk 0:02:05.5]} 10... Bd7 {[%clk 0:02:39.1]} 11. Bc4
{[%clk 0:02:06]} 11... Bc8 {[%clk 0:02:06.7]} 12. Bb5+ {[%clk 0:02:04.3]} 12...
Bd7 {[%clk 0:02:05.7]} 13. Bc4 {[%clk 0:02:04.8]} 13... c6 {[%clk 0:01:57.6]}
14. dxc6 {[%clk 0:02:03]} 14... Nxc6 {[%clk 0:01:55.4]} 15. Nge2 {[%clk
0:01:59.8]} 15... e5 {[%clk 0:01:55.4]} 16. Ne4 {[%clk 0:01:43]} 16... Nxe4
{[%clk 0:01:46.8]} 17. dxe4 {[%clk 0:01:39.4]} 17... Bc5 {[%clk 0:01:36.2]} 18.
Bxf7+ {[%clk 0:01:13.3]} 18... Kxf7 {[%clk 0:01:37.1]} 19. Qd5+ {[%clk
0:01:10.4]} 19... Be6 {[%clk 0:01:38]} 20. Qxc5 {[%clk 0:01:10.7]} 20... Rc8
{[%clk 0:01:38.9]} 21. Qf2 {[%clk 0:00:16.2]} 21... Nb4 {[%clk 0:01:33.1]} 22.
O-O {[%clk 0:00:15.7]} 22... Rxc2 {[%clk 0:01:33.8]} 23. Qe1 {[%clk 0:00:11.2]}
23... Nd3 {[%clk 0:01:26.3]} 24. Qd1 {[%clk 0:00:11.1]} 24... Qb6+ {[%clk
0:00:23.1]} 25. Kh1 {[%clk 0:00:10.6]} 25... Nb4 {[%clk 0:00:24]} 26. f4 {[%clk
0:00:08.4]} 26... Rd8 {[%clk 0:00:24.5]} 27. fxe5+ {[%clk 0:00:08.7]} 27... Kg8
{[%clk 0:00:25.1]} 28. Qe1 {[%clk 0:00:08.3]} 28... Nd3 {[%clk 0:00:24.4]} 29.
Qh4 {[%clk 0:00:03]} 29... Rxe2 {[%clk 0:00:23.3]} 30. Bg5 {[%clk 0:00:03.5]}
30... Re8 {[%clk 0:00:20.1]} 31. h3 {[%clk 0:00:03.4]} 31... Nf2+ {[%clk
0:00:16.6]} 32. Kh2 {[%clk 0:00:03.8]} 32... Qxb2 {[%clk 0:00:17.1]} 33. Rab1
{[%clk 0:00:03.6]} 33... Qc2 {[%clk 0:00:15.8]} 34. Rxb7 {[%clk 0:00:03.9]}
34... Ng4+ {[%clk 0:00:13.4]} 35. Kh1 {[%clk 0:00:01.6]} 35... Rxg2 {[%clk
0:00:14.3]} 0-1

[Event "Early-Titled-Tuesday-Blitz-May-14-2024"]
[Site "Chess.com"]
[Date "2024.05.14"]
[Round "5"]
[White "Slovineanu"]
[Black "remyrushbrooke"]
[Result "1-0"]
[WhiteElo "2491"]
[BlackElo "2321"]
[TimeControl "180+1"]
[EndTime "8:57:47 PDT"]
[Termination "Slovineanu won on time"]

1. d4 {[%clk 0:02:58.4]} 1... g6 {[%clk 0:02:59.7]} 2. e4 {[%clk 0:02:57.3]}
2... Bg7 {[%clk 0:03:00.2]} 3. Nc3 {[%clk 0:02:57.3]} 3... d6 {[%clk 0:03:00.3]}
4. Be3 {[%clk 0:02:56.5]} 4... a6 {[%clk 0:03:00.5]} 5. Nf3 {[%clk 0:02:55.5]}
5... b5 {[%clk 0:02:59.3]} 6. h4 {[%clk 0:02:54.7]} 6... Bb7 {[%clk 0:02:52.4]}
7. h5 {[%clk 0:02:49]} 7... b4 {[%clk 0:02:52.2]} 8. Nd5 {[%clk 0:02:48.3]} 8...
e6 {[%clk 0:02:50.3]} 9. Nxb4 {[%clk 0:02:13.3]} 9... Bxe4 {[%clk 0:02:49.7]}
10. Bd3 {[%clk 0:02:07.3]} 10... Bxd3 {[%clk 0:02:43.5]} 11. Nxd3 {[%clk
0:02:05]} 11... Ne7 {[%clk 0:02:20.1]} 12. Qd2 {[%clk 0:02:03.6]} 12... Nf5
{[%clk 0:02:06]} 13. h6 {[%clk 0:01:48.1]} 13... Bf6 {[%clk 0:02:04.4]} 14. Bg5
{[%clk 0:01:47.4]} 14... Bxg5 {[%clk 0:02:00]} 15. Nxg5 {[%clk 0:01:43.9]} 15...
Nxd4 {[%clk 0:01:52.7]} 16. O-O-O {[%clk 0:01:42.3]} 16... c5 {[%clk 0:01:39]}
17. c3 {[%clk 0:01:38.5]} 17... Ndc6 {[%clk 0:01:15.4]} 18. Qf4 {[%clk
0:01:35.1]} 18... Qe7 {[%clk 0:01:08.4]} 19. Ne4 {[%clk 0:01:34.2]} 19... e5
{[%clk 0:01:02.7]} 20. Nxd6+ {[%clk 0:01:14.6]} 20... Qxd6 {[%clk 0:00:54.9]}
21. Nxe5 {[%clk 0:01:14.9]} 21... Qxe5 {[%clk 0:00:26.3]} 22. Rhe1 {[%clk
0:01:13.6]} 22... Nd7 {[%clk 0:00:20.4]} 23. Rxe5+ {[%clk 0:00:38.8]} 23...
Ncxe5 {[%clk 0:00:18]} 24. Qe4 {[%clk 0:00:35.5]} 24... O-O {[%clk 0:00:15.3]}
25. f4 {[%clk 0:00:36.1]} 25... Rfe8 {[%clk 0:00:12.9]} 26. fxe5 {[%clk
0:00:36]} 26... Nxe5 {[%clk 0:00:13]} 27. Qf4 {[%clk 0:00:28.7]} 27... f5 {[%clk
0:00:09.1]} 28. Kc2 {[%clk 0:00:24.7]} 28... c4 {[%clk 0:00:08.8]} 29. Rd5
{[%clk 0:00:19.7]} 29... Nd3 {[%clk 0:00:05.7]} 30. Qxc4 {[%clk 0:00:17.5]}
30... Ne1+ {[%clk 0:00:05.2]} 31. Kd1 {[%clk 0:00:16]} 31... Kh8 {[%clk
0:00:01.6]} 32. Qd4+ {[%clk 0:00:15.2]} 1-0

[Event "Early-Titled-Tuesday-Blitz-May-14-2024"]
[Site "Chess.com"]
[Date "2024.05.14"]
[Round "5"]
[White "Fradi82"]
[Black "Matols"]
[Result "1-0"]
[WhiteElo "2203"]
[BlackElo "2345"]
[TimeControl "180+1"]
[EndTime "8:57:48 PDT"]
[Termination "Fradi82 won by resignation"]

1. e4 {[%clk 0:02:53.9]} 1... c6 {[%clk 0:02:52.1]} 2. d4 {[%clk 0:02:49.7]}
2... d5 {[%clk 0:02:52.4]} 3. e5 {[%clk 0:02:50.6]} 3... c5 {[%clk 0:02:52.5]}
4. c4 {[%clk 0:02:49.4]} 4... cxd4 {[%clk 0:02:51.5]} 5. Nf3 {[%clk 0:02:48.8]}
5... Nc6 {[%clk 0:02:50.8]} 6. Nxd4 {[%clk 0:02:48.4]} 6... Nxd4 {[%clk
0:02:50.1]} 7. Qxd4 {[%clk 0:02:46.9]} 7... e6 {[%clk 0:02:48]} 8. cxd5 {[%clk
0:02:45.3]} 8... Qxd5 {[%clk 0:02:47.6]} 9. Qxd5 {[%clk 0:02:45.6]} 9... exd5
{[%clk 0:02:48.5]} 10. Nc3 {[%clk 0:02:46.1]} 10... Be6 {[%clk 0:02:41.7]} 11.
Bb5+ {[%clk 0:02:44.9]} 11... Kd8 {[%clk 0:02:38.7]} 12. Bg5+ {[%clk 0:02:40.3]}
12... Be7 {[%clk 0:02:37.9]} 13. Bxe7+ {[%clk 0:02:39.3]} 13... Nxe7 {[%clk
0:02:38.8]} 14. O-O-O {[%clk 0:02:39.1]} 14... a6 {[%clk 0:02:36.5]} 15. Bc4
{[%clk 0:02:38]} 15... Rc8 {[%clk 0:02:34.7]} 16. Bb3 {[%clk 0:02:33.1]} 16...
Rc5 {[%clk 0:02:22.6]} 17. Kb1 {[%clk 0:02:27.5]} 17... Kc8 {[%clk 0:02:21.6]}
18. Na4 {[%clk 0:02:20.2]} 18... Rc6 {[%clk 0:02:10.7]} 19. Rc1 {[%clk
0:02:19.2]} 19... Rd8 {[%clk 0:02:07.4]} 20. Rxc6+ {[%clk 0:02:12.2]} 20... bxc6
{[%clk 0:02:05.1]} 21. Nc5 {[%clk 0:02:10.5]} 21... Ng6 {[%clk 0:01:58.1]} 22.
Re1 {[%clk 0:01:48.8]} 22... Kc7 {[%clk 0:01:54.5]} 23. Nxa6+ {[%clk 0:01:46.9]}
23... Kb6 {[%clk 0:01:54.1]} 24. Nb4 {[%clk 0:01:46.3]} 24... c5 {[%clk
0:01:54.2]} 25. Nc2 {[%clk 0:01:29.9]} 25... c4 {[%clk 0:01:48.4]} 26. Ba4
{[%clk 0:01:30.1]} 26... d4 {[%clk 0:01:48.1]} 27. Na3 {[%clk 0:01:01.6]} 27...
Nf4 {[%clk 0:01:40.7]} 28. g3 {[%clk 0:00:53.8]} 28... Nd3 {[%clk 0:01:38.7]}
29. Re2 {[%clk 0:00:47.6]} 29... Kc5 {[%clk 0:01:37]} 30. Bc2 {[%clk 0:00:44.8]}
30... Nb4 {[%clk 0:01:34.7]} 31. Be4 {[%clk 0:00:36.9]} 31... d3 {[%clk
0:01:31.4]} 32. Rd2 {[%clk 0:00:33.1]} 32... Kd4 {[%clk 0:01:31.3]} 33. f3
{[%clk 0:00:33.5]} 33... Ke3 {[%clk 0:01:30.8]} 34. Rd1 {[%clk 0:00:24.4]} 34...
d2 {[%clk 0:01:29.8]} 35. Nc2+ {[%clk 0:00:22.7]} 35... Ke2 {[%clk 0:01:25.7]}
36. Rxd2+ {[%clk 0:00:12.2]} 36... Rxd2 {[%clk 0:01:23.8]} 37. Nxb4 {[%clk
0:00:12.5]} 37... Rd1+ {[%clk 0:00:56.5]} 38. Kc2 {[%clk 0:00:12.7]} 38... Rh1
{[%clk 0:00:56]} 39. a4 {[%clk 0:00:13.1]} 39... Rxh2 {[%clk 0:00:53]} 40. a5
{[%clk 0:00:13.5]} 40... Ke3+ {[%clk 0:00:52.7]} 41. Kc3 {[%clk 0:00:12.5]}
41... Rh1 {[%clk 0:00:50.5]} 42. a6 {[%clk 0:00:09.1]} 42... Ra1 {[%clk
0:00:42.1]} 43. Nc2+ {[%clk 0:00:09.3]} 43... Kf2 {[%clk 0:00:38.7]} 44. Nxa1
{[%clk 0:00:10.2]} 44... Kxg3 {[%clk 0:00:36.6]} 45. a7 {[%clk 0:00:09.8]} 45...
h5 {[%clk 0:00:37.1]} 46. a8=Q {[%clk 0:00:10.1]} 46... h4 {[%clk 0:00:37.8]}
47. Qg8 {[%clk 0:00:10.1]} 47... h3 {[%clk 0:00:38.7]} 48. Qxg7+ {[%clk
0:00:10.6]} 48... Kf2 {[%clk 0:00:38.6]} 49. Qh6 {[%clk 0:00:10.4]} 49... Kg1
{[%clk 0:00:38.2]} 50. f4 {[%clk 0:00:10.5]} 50... h2 {[%clk 0:00:38.2]} 51.
Qg5+ {[%clk 0:00:10.8]} 51... Kf1 {[%clk 0:00:37.6]} 52. Qg2+ {[%clk 0:00:11.7]}
1-0

[Event "Early-Titled-Tuesday-Blitz-May-14-2024"]
[Site "Chess.com"]
[Date "2024.05.14"]
[Round "5"]
[White "HanSchut"]
[Black "Sofia_Blokhin"]
[Result "1/2-1/2"]
[WhiteElo "2389"]
[BlackElo "2266"]
[TimeControl "180+1"]
[EndTime "8:57:50 PDT"]
[Termination "Game drawn by repetition"]

1. e4 {[%clk 0:03:00.9]} 1... c5 {[%clk 0:02:59]} 2. Nf3 {[%clk 0:03:00.8]} 2...
e6 {[%clk 0:02:59]} 3. c4 {[%clk 0:03:00.5]} 3... Nc6 {[%clk 0:02:52.9]} 4. Nc3
{[%clk 0:03:00.2]} 4... e5 {[%clk 0:02:53.3]} 5. Nd5 {[%clk 0:02:59.7]} 5... d6
{[%clk 0:02:50.4]} 6. d3 {[%clk 0:03:00.1]} 6... Nf6 {[%clk 0:02:45.9]} 7. Be2
{[%clk 0:02:59.8]} 7... Be7 {[%clk 0:02:41.7]} 8. O-O {[%clk 0:02:58.5]} 8...
Be6 {[%clk 0:02:41.8]} 9. Rb1 {[%clk 0:02:57.7]} 9... a5 {[%clk 0:02:39.6]} 10.
b3 {[%clk 0:02:56.6]} 10... O-O {[%clk 0:02:39.2]} 11. a3 {[%clk 0:02:56.5]}
11... Nd4 {[%clk 0:02:38]} 12. b4 {[%clk 0:02:46.4]} 12... Bxd5 {[%clk
0:02:25.9]} 13. cxd5 {[%clk 0:02:43.4]} 13... axb4 {[%clk 0:02:15.6]} 14. axb4
{[%clk 0:02:43.1]} 14... b6 {[%clk 0:02:15.9]} 15. bxc5 {[%clk 0:02:28.9]} 15...
bxc5 {[%clk 0:02:15.2]} 16. Nxd4 {[%clk 0:02:26]} 16... cxd4 {[%clk 0:02:10.5]}
17. f4 {[%clk 0:02:26.4]} 17... Rb8 {[%clk 0:02:05.7]} 18. Rxb8 {[%clk
0:02:18.3]} 18... Qxb8 {[%clk 0:02:05.1]} 19. fxe5 {[%clk 0:02:08.1]} 19... dxe5
{[%clk 0:02:04.5]} 20. Bd2 {[%clk 0:02:07.1]} 20... Qd6 {[%clk 0:01:52.1]} 21.
Qa4 {[%clk 0:01:57.4]} 21... Rc8 {[%clk 0:01:45.6]} 22. Rb1 {[%clk 0:01:51.8]}
22... h6 {[%clk 0:01:43]} 23. h3 {[%clk 0:01:41.2]} 23... Nd7 {[%clk 0:01:36.9]}
24. Bb4 {[%clk 0:01:33.6]} 24... Nc5 {[%clk 0:01:35.3]} 25. Qa3 {[%clk
0:01:25.6]} 25... Qb6 {[%clk 0:01:30]} 26. Rb2 {[%clk 0:01:17.2]} 26... Bf8
{[%clk 0:01:23.9]} 27. Bg4 {[%clk 0:00:52.2]} 27... Rb8 {[%clk 0:01:18.7]} 28.
Bc3 {[%clk 0:00:52.3]} 28... Qc7 {[%clk 0:01:04.8]} 29. Rxb8 {[%clk 0:00:48]}
29... Qxb8 {[%clk 0:01:05]} 30. Bb4 {[%clk 0:00:48.2]} 30... Nxd3 {[%clk
0:00:14.7]} 31. Bxf8 {[%clk 0:00:42.4]} 31... Qb1+ {[%clk 0:00:14.6]} 32. Kh2
{[%clk 0:00:43]} 32... Nf2 {[%clk 0:00:10.9]} 33. Bf3 {[%clk 0:00:30.8]} 33...
Qh1+ {[%clk 0:00:09.2]} 34. Kg3 {[%clk 0:00:31.4]} 34... Qe1 {[%clk 0:00:08.8]}
35. Kh2 {[%clk 0:00:18.8]} 35... Qh1+ {[%clk 0:00:08.1]} 36. Kg3 {[%clk
0:00:19.4]} 36... Qe1 {[%clk 0:00:08.3]} 37. Bb4 {[%clk 0:00:15.6]} 37... Nxe4+
{[%clk 0:00:07.6]} 38. Kh2 {[%clk 0:00:14.3]} 38... Qg3+ {[%clk 0:00:07.3]} 39.
Kh1 {[%clk 0:00:13.6]} 39... Nf2+ {[%clk 0:00:07]} 40. Kg1 {[%clk 0:00:13.8]}
40... Nxh3+ {[%clk 0:00:07.4]} 41. Kh1 {[%clk 0:00:13.2]} 41... Nf2+ {[%clk
0:00:06.5]} 42. Kg1 {[%clk 0:00:13.3]} 42... Nh3+ {[%clk 0:00:06.9]} 43. Kh1
{[%clk 0:00:13.8]} 43... Nf2+ {[%clk 0:00:07.5]} 44. Kg1 {[%clk 0:00:14.4]}
44... Nh3+ {[%clk 0:00:07.9]} 1/2-1/2

[Event "Early-Titled-Tuesday-Blitz-May-14-2024"]
[Site "Chess.com"]
[Date "2024.05.14"]
[Round "5"]
[White "ivana_999"]
[Black "ilimchess2"]
[Result "1/2-1/2"]
[WhiteElo "1855"]
[BlackElo "2294"]
[TimeControl "180+1"]
[EndTime "8:57:51 PDT"]
[Termination "Game drawn by repetition"]

1. d4 {[%clk 0:02:59.9]} 1... c6 {[%clk 0:03:00.5]} 2. c4 {[%clk 0:03:00.4]}
2... d5 {[%clk 0:03:00.9]} 3. cxd5 {[%clk 0:03:00.3]} 3... cxd5 {[%clk
0:03:01.1]} 4. Nc3 {[%clk 0:03:01.1]} 4... Nc6 {[%clk 0:03:01]} 5. Bf4 {[%clk
0:03:01.7]} 5... a6 {[%clk 0:03:00.6]} 6. e3 {[%clk 0:03:01.9]} 6... Nf6 {[%clk
0:03:01]} 7. Bd3 {[%clk 0:03:01.7]} 7... Bg4 {[%clk 0:02:59.2]} 8. f3 {[%clk
0:02:59]} 8... Bh5 {[%clk 0:02:59.3]} 9. Nge2 {[%clk 0:02:59.2]} 9... Bg6 {[%clk
0:02:58.7]} 10. O-O {[%clk 0:02:58]} 10... e6 {[%clk 0:02:57]} 11. Rc1 {[%clk
0:02:58.1]} 11... Rc8 {[%clk 0:02:54.1]} 12. Qd2 {[%clk 0:02:46.2]} 12... Bxd3
{[%clk 0:02:49.5]} 13. Qxd3 {[%clk 0:02:46.3]} 13... Bd6 {[%clk 0:02:48.8]} 14.
Bxd6 {[%clk 0:02:45.5]} 14... Qxd6 {[%clk 0:02:49.7]} 15. a3 {[%clk 0:02:44.4]}
15... O-O {[%clk 0:02:47.6]} 16. Na4 {[%clk 0:02:44.3]} 16... Nd7 {[%clk
0:02:44.5]} 17. b4 {[%clk 0:02:41.8]} 17... Rc7 {[%clk 0:02:28.7]} 18. Rc3
{[%clk 0:02:33.6]} 18... Rfc8 {[%clk 0:02:27.9]} 19. Rfc1 {[%clk 0:02:34.3]}
19... Na7 {[%clk 0:02:21.3]} 20. Nc5 {[%clk 0:02:11.6]} 20... Nxc5 {[%clk
0:02:16.1]} 21. bxc5 {[%clk 0:02:07.9]} 21... Qd7 {[%clk 0:02:13]} 22. Rb3
{[%clk 0:02:07.5]} 22... Nc6 {[%clk 0:02:07.3]} 23. Rcb1 {[%clk 0:02:03.4]}
23... Nd8 {[%clk 0:02:04.8]} 24. Nc3 {[%clk 0:02:00.7]} 24... g6 {[%clk
0:01:58]} 25. Kf2 {[%clk 0:01:40.7]} 25... f5 {[%clk 0:01:55.6]} 26. h4 {[%clk
0:01:40.5]} 26... Qe7 {[%clk 0:01:52.3]} 27. g3 {[%clk 0:01:34.3]} 27... Nc6
{[%clk 0:01:49.1]} 28. Na4 {[%clk 0:01:33]} 28... Na5 {[%clk 0:01:48.8]} 29. Rb4
{[%clk 0:01:22.7]} 29... Nc4 {[%clk 0:01:48.4]} 30. Nb6 {[%clk 0:01:18.9]} 30...
Nxb6 {[%clk 0:01:41]} 31. Rxb6 {[%clk 0:01:19.8]} 31... Rd8 {[%clk 0:01:38.5]}
32. R1b4 {[%clk 0:01:17.2]} 32... Rdd7 {[%clk 0:01:38.7]} 33. Qb3 {[%clk
0:01:17.1]} 33... h5 {[%clk 0:01:35.8]} 34. f4 {[%clk 0:01:16.6]} 34... Kg7
{[%clk 0:01:32.3]} 35. Qa4 {[%clk 0:01:06.6]} 35... Kh6 {[%clk 0:01:31.5]} 36.
c6 {[%clk 0:01:06.2]} 36... Rxc6 {[%clk 0:01:26.3]} 37. Rxc6 {[%clk 0:01:05.6]}
37... bxc6 {[%clk 0:01:26.4]} 38. Qxc6 {[%clk 0:01:06.5]} 38... Rc7 {[%clk
0:01:20.7]} 39. Qxa6 {[%clk 0:01:06.1]} 39... Rc2+ {[%clk 0:01:19.9]} 40. Kf3
{[%clk 0:01:06.5]} 40... Qc7 {[%clk 0:01:14.5]} 41. Qb7 {[%clk 0:00:40]} 41...
Rf2+ {[%clk 0:00:18.8]} 42. Kxf2 {[%clk 0:00:38]} 42... Qc2+ {[%clk 0:00:19.7]}
43. Kf3 {[%clk 0:00:30]} 43... Qd1+ {[%clk 0:00:19.9]} 44. Kf2 {[%clk 0:00:30]}
44... Qd2+ {[%clk 0:00:20.3]} 45. Kf3 {[%clk 0:00:29.6]} 45... Qd1+ {[%clk
0:00:20.8]} 46. Kf2 {[%clk 0:00:29.7]} 46... Qd2+ {[%clk 0:00:21.1]} 47. Kf3
{[%clk 0:00:25.2]} 47... Qd1+ {[%clk 0:00:21.4]} 1/2-1/2

[Event "Early-Titled-Tuesday-Blitz-May-14-2024"]
[Site "Chess.com"]
[Date "2024.05.14"]
[Round "5"]
[White "AccioChess"]
[Black "Stanbad1"]
[Result "0-1"]
[WhiteElo "2432"]
[BlackElo "2599"]
[TimeControl "180+1"]
[EndTime "8:57:53 PDT"]
[Termination "Stanbad1 won on time"]

1. c4 {[%clk 0:03:00.9]} 1... Nf6 {[%clk 0:02:59.5]} 2. Nf3 {[%clk 0:03:01]}
2... g6 {[%clk 0:02:59.6]} 3. g3 {[%clk 0:03:01.5]} 3... Bg7 {[%clk 0:02:59.7]}
4. Bg2 {[%clk 0:03:02]} 4... d6 {[%clk 0:03:00.1]} 5. O-O {[%clk 0:03:02.6]}
5... O-O {[%clk 0:03:00.4]} 6. Nc3 {[%clk 0:03:03]} 6... c5 {[%clk 0:02:59.7]}
7. d3 {[%clk 0:03:03.2]} 7... Nc6 {[%clk 0:02:59.7]} 8. Rb1 {[%clk 0:03:03.2]}
8... Rb8 {[%clk 0:02:58.5]} 9. a3 {[%clk 0:03:01.6]} 9... Ne8 {[%clk 0:02:57.1]}
10. Bd2 {[%clk 0:03:01.2]} 10... Nc7 {[%clk 0:02:46.4]} 11. b4 {[%clk
0:03:00.1]} 11... b6 {[%clk 0:02:41.4]} 12. b5 {[%clk 0:02:58.1]} 12... Nd4
{[%clk 0:02:38.5]} 13. Ne1 {[%clk 0:02:56.7]} 13... Bb7 {[%clk 0:02:25.9]} 14.
e3 {[%clk 0:02:52.2]} 14... Bxg2 {[%clk 0:02:21.3]} 15. Nxg2 {[%clk 0:02:50.6]}
15... Nde6 {[%clk 0:02:21.5]} 16. f4 {[%clk 0:02:37.6]} 16... d5 {[%clk
0:02:15.2]} 17. Ne2 {[%clk 0:02:37.1]} 17... dxc4 {[%clk 0:01:58]} 18. dxc4
{[%clk 0:02:38]} 18... Qd3 {[%clk 0:01:57.2]} 19. Bc3 {[%clk 0:01:38]} 19...
Qxc4 {[%clk 0:01:55.5]} 20. Bxg7 {[%clk 0:01:37.7]} 20... Kxg7 {[%clk
0:01:51.7]} 21. f5 {[%clk 0:01:35.6]} 21... Rfd8 {[%clk 0:01:49.1]} 22. Qe1
{[%clk 0:01:33.9]} 22... Ng5 {[%clk 0:01:48.1]} 23. h4 {[%clk 0:01:25.9]} 23...
Ne4 {[%clk 0:01:46]} 24. Rf4 {[%clk 0:01:18.6]} 24... Qd5 {[%clk 0:01:39.7]} 25.
Nc3 {[%clk 0:01:15.7]} 25... Nxc3 {[%clk 0:01:38.1]} 26. Qxc3+ {[%clk
0:01:16.6]} 26... Kg8 {[%clk 0:01:37.1]} 27. Rbf1 {[%clk 0:01:13.4]} 27... f6
{[%clk 0:01:34.5]} 28. fxg6 {[%clk 0:01:10.4]} 28... hxg6 {[%clk 0:01:34.3]} 29.
a4 {[%clk 0:00:56.3]} 29... Qe6 {[%clk 0:01:25.4]} 30. e4 {[%clk 0:00:53.1]}
30... Rd4 {[%clk 0:01:23.4]} 31. Qf3 {[%clk 0:00:47.1]} 31... Rxa4 {[%clk
0:01:03.7]} 32. Rg4 {[%clk 0:00:47.2]} 32... Kh7 {[%clk 0:01:00.5]} 33. Nf4
{[%clk 0:00:39.3]} 33... Qxe4 {[%clk 0:00:59]} 34. Qb3 {[%clk 0:00:31.6]} 34...
Qc4 {[%clk 0:00:51.6]} 35. Qb1 {[%clk 0:00:31.5]} 35... Qd4+ {[%clk 0:00:50.1]}
36. Kh2 {[%clk 0:00:23.8]} 36... Qe4 {[%clk 0:00:44.8]} 37. Qb3 {[%clk
0:00:18.7]} 37... Rc4 {[%clk 0:00:39.7]} 38. Rf2 {[%clk 0:00:17.8]} 38... Rd8
{[%clk 0:00:30.4]} 39. Rxg6 {[%clk 0:00:07]} 39... Nd5 {[%clk 0:00:19.8]} 40.
Rg4 {[%clk 0:00:04.9]} 40... Ne3 {[%clk 0:00:18.2]} 41. Rg6 {[%clk 0:00:00.5]}
41... Rd1 {[%clk 0:00:17.4]} 0-1

[Event "Early-Titled-Tuesday-Blitz-May-14-2024"]
[Site "Chess.com"]
[Date "2024.05.14"]
[Round "5"]
[White "Chessdude1987"]
[Black "Iskusnyh"]
[Result "0-1"]
[WhiteElo "2387"]
[BlackElo "2586"]
[TimeControl "180+1"]
[EndTime "8:57:53 PDT"]
[Termination "Iskusnyh won on time"]

1. e4 {[%clk 0:03:00.9]} 1... e6 {[%clk 0:02:59.1]} 2. d4 {[%clk 0:02:59.8]}
2... d5 {[%clk 0:02:59.2]} 3. Nc3 {[%clk 0:02:57.7]} 3... Nf6 {[%clk 0:02:58.2]}
4. e5 {[%clk 0:02:57.8]} 4... Nfd7 {[%clk 0:02:56]} 5. f4 {[%clk 0:02:58.4]}
5... c5 {[%clk 0:02:53.8]} 6. Nf3 {[%clk 0:02:58.9]} 6... Nc6 {[%clk 0:02:54.3]}
7. Be3 {[%clk 0:02:59.1]} 7... a6 {[%clk 0:02:53.9]} 8. Be2 {[%clk 0:02:47.7]}
8... b5 {[%clk 0:02:42.2]} 9. a3 {[%clk 0:02:45.5]} 9... cxd4 {[%clk 0:02:05.6]}
10. Nxd4 {[%clk 0:02:45.2]} 10... Nxd4 {[%clk 0:02:05.6]} 11. Bxd4 {[%clk
0:02:45.1]} 11... Bc5 {[%clk 0:02:05.6]} 12. Bf3 {[%clk 0:02:27.9]} 12... Qb6
{[%clk 0:02:03.4]} 13. Ne2 {[%clk 0:02:23.8]} 13... a5 {[%clk 0:01:51.4]} 14. c3
{[%clk 0:02:18]} 14... O-O {[%clk 0:01:44.6]} 15. b4 {[%clk 0:02:13.1]} 15...
Bxd4 {[%clk 0:01:37.4]} 16. Nxd4 {[%clk 0:02:11.1]} 16... Ba6 {[%clk 0:01:07.6]}
17. O-O {[%clk 0:02:09.4]} 17... Rfc8 {[%clk 0:01:06.7]} 18. Qd2 {[%clk
0:02:04.3]} 18... Rc7 {[%clk 0:01:01.2]} 19. Kh1 {[%clk 0:02:03]} 19... Rac8
{[%clk 0:01:00.6]} 20. Rac1 {[%clk 0:02:02.4]} 20... Qa7 {[%clk 0:00:50.5]} 21.
Rfe1 {[%clk 0:01:56.3]} 21... g6 {[%clk 0:00:44.7]} 22. g4 {[%clk 0:01:52.5]}
22... Rf8 {[%clk 0:00:17.7]} 23. f5 {[%clk 0:01:52.3]} 23... exf5 {[%clk
0:00:15.6]} 24. gxf5 {[%clk 0:01:52.5]} 24... Nb6 {[%clk 0:00:15.9]} 25. f6
{[%clk 0:01:44.6]} 25... Kh8 {[%clk 0:00:13.1]} 26. Qh6 {[%clk 0:01:22]} 26...
Rg8 {[%clk 0:00:13.1]} 27. e6 {[%clk 0:01:17.5]} 27... fxe6 {[%clk 0:00:12.6]}
28. Nxe6 {[%clk 0:01:17.4]} 28... Rf7 {[%clk 0:00:12.2]} 29. Qh4 {[%clk
0:01:03.8]} 29... Nc4 {[%clk 0:00:11.3]} 30. Rf1 {[%clk 0:00:17]} 30... d4
{[%clk 0:00:11.2]} 31. cxd4 {[%clk 0:00:14.4]} 31... Nd2 {[%clk 0:00:11]} 32. d5
{[%clk 0:00:12.6]} 32... Nxf3 {[%clk 0:00:09.1]} 33. Rxf3 {[%clk 0:00:12.1]}
33... Qd7 {[%clk 0:00:09.1]} 34. Rd1 {[%clk 0:00:07.9]} 34... Bb7 {[%clk
0:00:08.6]} 35. Rfd3 {[%clk 0:00:07]} 35... Qxe6 {[%clk 0:00:07.9]} 0-1